bitfinex-derivatives/quotes_BTCF0:USTF0_20240902
["timestamp","ask_amount","ask_price","bid_price","bid_amount"]
[1725279999504,0.085597,58416.0,58415.0,0.00025667]
[1725279999707,0.722,58416.0,58400.0,0.3608]
[1725279999902,0.722,58416.0,58400.0,0.64642]
[1725279999903,0.0004,58401.0,58400.0,0.64642]
[1725280000104,0.02775693,58406.0,58403.0,0.085615]
[1725280000310,0.0608262,58405.0,58403.0,0.085615]
[1725280000508,0.0608262,58404.0,58403.0,0.085615]
[1725280000813,0.0277574,58404.0,58400.0,0.562]
[1725280001008,0.0277574,58403.0,58400.0,0.65075537]
[1725280001313,0.0004,58401.0,58400.0,0.65075537]
[1725280001522,0.0271574,58401.0,58400.0,0.65075537]
[1725280001706,0.3608,58407.0,58400.0,0.65075537]
[1725280002020,0.05091397,58405.0,58400.0,0.65075537]
[1725280002407,0.009,58403.0,58400.0,0.65175537]
[1725280002803,0.05091397,58405.0,58400.0,0.65075537]
[1725280003004,0.05091397,58405.0,58400.0,0.65175537]
[1725280004015,0.005,58403.0,58400.0,0.65175537]
[1725280004604,0.05091397,58405.0,58400.0,0.65175537]
[1725280004809,0.05691397,58405.0,58404.0,0.0004]
[1725280005910,0.06491397,58405.0,58404.0,0.0004]
[1725280006619,0.06491397,58405.0,58404.0,0.086014]
[1725280006819,0.06491397,58405.0,58404.0,0.286014]
[1725280006820,0.014,58405.0,58404.0,0.286014]
[1725280007410,0.022,58405.0,58404.0,0.287014]
[1725280007815,0.022,58405.0,58404.0,0.087014]
[1725280008030,0.07291397,58405.0,58404.0,0.087014]
[1725280008217,0.06491397,58405.0,58404.0,0.087014]
[1725280008421,0.07391397,58405.0,58404.0,0.088014]
[1725280008818,0.023,58405.0,58404.0,0.088014]
[1725280009907,0.02,58405.0,58404.0,0.088014]
[1725280010715,0.02,58405.0,58404.0,0.087014]
[1725280010716,0.014,58405.0,58404.0,0.087014]
[1725280010914,0.02,58405.0,58404.0,0.088014]
[1725280011414,0.02,58405.0,58404.0,0.087014]
[1725280011415,0.006,58405.0,58404.0,0.087014]
[1725280011624,0.016,58405.0,58404.0,0.088014]
[1725280011821,0.016,58405.0,58404.0,0.288014]
[1725280012913,0.01,58405.0,58404.0,0.287014]
[1725280013114,0.3608,58407.0,58406.0,0.085611]
[1725280013314,0.3608,58407.0,58406.0,0.086011]
[1725280014815,0.3798,58407.0,58406.0,0.088011]
[1725280015326,0.008,58407.0,58406.0,0.172622]
[1725280015529,0.02,58407.0,58406.0,0.219922]
[1725280016231,0.012,58407.0,58406.0,0.218922]
[1725280016536,0.019,58407.0,58406.0,0.580722]
[1725280017226,0.02,58407.0,58406.0,0.580722]
[1725280020837,0.02,58407.0,58406.0,0.58497262]
[1725280021233,0.02,58407.0,58406.0,0.63600666]
[1725280022529,0.02,58407.0,58406.0,0.58497262]
[1725280023131,0.02,58407.0,58406.0,0.45306162]
[1725280024433,0.04775543,58407.0,58406.0,0.45306162]
[1725280024636,0.14975808,58407.0,58406.0,0.53867262]
[1725280024822,0.10226825,58409.0,58408.0,0.085608]
[1725280025128,0.00025667,58409.0,58408.0,0.086008]
[1725280025321,0.00025667,58409.0,58408.0,0.134208]
[1725280025735,0.10201158,58411.0,58410.0,0.085606]
[1725280025930,0.0488,58422.0,58410.0,0.085606]
[1725280025931,0.10204776,58412.0,58410.0,0.00884544]
[1725280026127,0.10204889,58412.0,58411.0,0.3608]
[1725280026328,0.10204889,58413.0,58412.0,0.085603]
[1725280026540,0.10204889,58413.0,58412.0,0.286003]
[1725280027328,0.03306196,58419.0,58412.0,0.286003]
[1725280027637,0.16762911,58422.0,58417.0,0.2]
[1725280027638,0.03306196,58418.0,58417.0,0.2]
[1725280028032,0.03306196,58418.0,58417.0,0.285595]
[1725280031140,0.03306196,58418.0,58417.0,0.28981318]
[1725280031338,0.08516662,58419.0,58418.0,0.085594]
[1725280031533,0.0488,58422.0,58418.0,0.0004]
[1725280031933,0.08516655,58419.0,58418.0,0.085994]
[1725280032527,0.08816655,58419.0,58418.0,0.085994]
[1725280033440,0.08916655,58419.0,58418.0,0.085994]
[1725280037534,0.08716655,58419.0,58418.0,0.087994]
[1725280038038,0.08716655,58419.0,58418.0,0.207994]
[1725280038543,0.002,58419.0,58418.0,0.207994]
[1725280039133,0.0881573,58419.0,58418.0,0.207994]
[1725280039538,0.003,58419.0,58418.0,0.205994]
[1725280039841,0.1339573,58422.0,58421.0,0.085589]
[1725280040044,0.0488,58422.0,58421.0,0.205989]
[1725280040538,0.07655069,58422.0,58421.0,0.205989]
[1725280040946,0.08055069,58422.0,58421.0,0.206989]
[1725280041145,0.44135069,58422.0,58421.0,0.206989]
[1725280041443,0.4136,58422.0,58421.0,0.206989]
[1725280041836,0.4166,58422.0,58421.0,0.206989]
[1725280042140,0.44435048,58422.0,58421.0,0.206989]
[1725280042550,0.4166,58422.0,58421.0,0.206989]
[1725280042751,0.44435048,58422.0,58421.0,0.206989]
[1725280043742,0.4166,58422.0,58421.0,0.206989]
[1725280043940,0.0558,58422.0,58421.0,0.206989]
[1725280044243,0.0548,58422.0,58421.0,0.206989]
[1725280045535,0.0548,58422.0,58421.0,0.292578]
[1725280045743,0.0508,58422.0,58421.0,0.291578]
[1725280045939,0.0548,58422.0,58421.0,0.291578]
[1725280046241,0.12295454,58422.0,58421.0,0.291578]
[1725280046545,0.06080595,58422.0,58421.0,0.207989]
[1725280046737,0.3608,58429.0,58421.0,0.207989]
[1725280046738,0.11927753,58424.0,58423.0,0.085587]
[1725280046935,0.06080488,58424.0,58423.0,0.291574]
[1725280048045,0.03305768,58424.0,58423.0,0.291574]
[1725280048242,0.3608,58429.0,58426.0,0.085582]
[1725280048444,0.06080336,58428.0,58427.0,0.12]
[1725280048640,0.06080336,58428.0,58427.0,0.291162]
[1725280049645,0.06080336,58428.0,58427.0,0.292162]
[1725280049942,0.06080336,58428.0,58427.0,0.377743]
[1725280050440,0.11927753,58435.0,58430.0,0.085576]
[1725280050643,0.06079522,58434.0,58432.0,0.3608]
[1725280050848,2.2e-07,58433.0,58432.0,0.617519]
[1725280051043,0.48007753,58441.0,58438.0,0.17113]
[1725280051238,0.3608,58441.0,58440.0,0.085962]
[1725280051442,0.3608,58441.0,58440.0,0.205962]
[1725280051443,0.39384929,58441.0,58440.0,0.205962]
[1725280052048,0.39384929,58441.0,58440.0,0.195962]
[1725280053254,0.39384929,58441.0,58440.0,0.196962]
[1725280053953,0.39384929,58441.0,58440.0,0.200962]
[1725280054145,0.3608,58441.0,58440.0,0.200962]
[1725280054344,0.3938492,58441.0,58440.0,0.200962]
[1725280054553,0.3608,58441.0,58440.0,0.200962]
[1725280056052,0.3608,58441.0,58440.0,0.20515654]
[1725280056255,0.3608,58441.0,58440.0,0.20615654]
[1725280056560,0.42879203,58441.0,58440.0,0.20615654]
[1725280056949,0.42879203,58441.0,58440.0,0.20115654]
[1725280057149,0.42879203,58441.0,58440.0,0.20515654]
[1725280057356,0.3608,58441.0,58440.0,0.20615654]
[1725280057758,0.3608,58441.0,58440.0,0.20115654]
[1725280057954,0.3608,58441.0,58440.0,0.20615654]
[1725280059455,0.06799203,58443.0,58442.0,0.085559]
[1725280059659,0.06799203,58443.0,58442.0,0.085959]
[1725280060951,0.06799203,58443.0,58442.0,0.087959]
[1725280061562,0.0509391,58443.0,58442.0,0.087959]
[1725280063249,0.0509391,58443.0,58442.0,0.086959]
[1725280063454,0.0475,58447.0,58443.0,0.085557]
[1725280063455,0.0509391,58444.0,58443.0,0.085557]
[1725280063854,0.11549203,58447.0,58443.0,0.085957]
[1725280063855,0.06799203,58446.0,58443.0,0.085957]
[1725280064062,0.4083,58447.0,58443.0,0.085957]
[1725280064063,0.06799203,58444.0,58443.0,0.205957]
[1725280065056,0.4083,58447.0,58443.0,0.205957]
[1725280065255,0.001,58444.0,58443.0,0.205957]
[1725280066164,0.3618,58444.0,58443.0,0.205957]
[1725280066958,0.3618,58444.0,58443.0,0.206957]
[1725280067259,0.001,58444.0,58443.0,0.206957]
[1725280069666,0.028741,58444.0,58443.0,0.206957]
[1725280069872,0.028741,58444.0,58443.0,0.086957]
[1725280070170,0.30947109,58444.0,58443.0,0.206957]
[1725280070465,0.30947042,58444.0,58443.0,0.206957]
[1725280070673,0.15520688,58444.0,58443.0,0.205957]
[1725280070959,0.15620688,58444.0,58443.0,0.206957]
[1725280071168,0.30947042,58444.0,58443.0,0.206957]
[1725280072369,0.15620688,58444.0,58443.0,0.206957]
[1725280074064,0.15620688,58444.0,58443.0,0.207957]
[1725280074468,0.15620672,58444.0,58443.0,0.207957]
[1725280075965,0.15620672,58444.0,58443.0,0.206957]
[1725280076566,0.02874076,58444.0,58443.0,0.206957]
[1725280076965,0.02774076,58444.0,58443.0,0.205957]
[1725280077166,0.130969,58444.0,58443.0,0.206957]
[1725280077574,0.02774076,58444.0,58443.0,0.205957]
[1725280077772,0.02774076,58444.0,58443.0,0.206957]
[1725280077773,0.02874076,58444.0,58443.0,0.206957]
[1725280077972,0.001,58444.0,58443.0,0.206957]
[1725280078174,0.02873936,58444.0,58443.0,0.206957]
[1725280078371,0.02773936,58444.0,58443.0,0.205957]
[1725280078677,0.02773936,58444.0,58443.0,0.206957]
[1725280078678,0.02873936,58444.0,58443.0,0.206957]
[1725280079577,0.02873936,58444.0,58443.0,0.207957]
[1725280080073,0.02773936,58444.0,58443.0,0.206957]
[1725280080278,0.02873936,58444.0,58443.0,0.205957]
[1725280081264,0.02873936,58444.0,58443.0,0.206957]
[1725280083590,0.02873936,58444.0,58443.0,0.205957]
[1725280086181,0.3608,58452.0,58451.0,0.085546]
[1725280086471,0.06078301,58452.0,58451.0,0.205946]
[1725280086874,0.48006628,58459.0,58456.0,0.085538]
[1725280087095,0.06077674,58458.0,58457.0,0.085537]
[1725280087672,0.06077674,58458.0,58457.0,0.205537]
[1725280087869,0.02773436,58458.0,58457.0,0.205537]
[1725280088069,0.02773436,58458.0,58457.0,0.12]
[1725280088070,0.0277325,58458.0,58457.0,0.12]
[1725280088374,0.001,58458.0,58457.0,0.121]
[1725280088765,0.0287325,58458.0,58457.0,0.121]
[1725280089373,0.0287325,58458.0,58457.0,0.1253392]
[1725280089778,0.0287325,58458.0,58457.0,0.2108762]
[1725280089972,0.0287325,58458.0,58457.0,0.2118762]
[1725280090180,0.0287325,58458.0,58457.0,0.0918762]
[1725280090181,0.001,58458.0,58457.0,0.0918762]
[1725280090379,0.001,58458.0,58457.0,0.2118762]
[1725280091179,0.08618235,58458.0,58457.0,0.2118762]
[1725280091379,0.08618235,58458.0,58457.0,0.0918762]
[1725280091581,0.001,58458.0,58457.0,0.2118762]
[1725280091770,0.0521082,58458.0,58457.0,0.2118762]
[1725280092187,0.001,58458.0,58457.0,0.2118762]
[1725280092491,0.06814426,58463.0,58462.0,0.085529]
[1725280092694,0.06814426,58464.0,58463.0,0.085528]
[1725280092990,0.06814426,58464.0,58463.0,0.205528]
[1725280093295,0.13488235,58469.0,58463.0,0.205528]
[1725280093296,0.06814426,58465.0,58463.0,0.205528]
[1725280093477,0.06814426,58465.0,58464.0,0.0004]
[1725280094287,0.42894426,58466.0,58464.0,0.0004]
[1725280094473,0.42894426,58466.0,58465.0,0.0004]
[1725280095782,0.3608,58466.0,58465.0,0.0004]
[1725280096090,0.3608,58466.0,58462.0,0.0014]
[1725280096091,0.085528,58463.0,58462.0,0.0014]
[1725280096390,0.085543,58453.0,58445.0,0.12]
[1725280096584,0.566743,58453.0,58447.0,0.12]
[1725280096779,1.165743,58453.0,58452.0,0.004556]
[1725280097092,1.165743,58453.0,58452.0,0.00025667]
[1725280097480,1.163743,58453.0,58452.0,0.00025667]
[1725280097886,1.043743,58453.0,58452.0,0.00025667]
[1725280098189,0.443743,58453.0,58452.0,0.00125667]
[1725280099179,0.445743,58453.0,58452.0,0.00225667]
[1725280099579,0.506525,58453.0,58452.0,0.00225667]
[1725280100092,0.424982,58453.0,58452.0,0.20225667]
[1725280100295,0.424982,58453.0,58452.0,0.20125667]
[1725280100488,0.426982,58453.0,58452.0,0.20225667]
[1725280100690,0.423982,58453.0,58452.0,0.20125667]
[1725280100881,0.424982,58453.0,58452.0,0.20125667]
[1725280101189,0.426982,58453.0,58452.0,0.20225667]
[1725280101502,0.066182,58453.0,58452.0,0.20225667]
[1725280102391,0.06617844,58453.0,58452.0,0.20225667]
[1725280102691,0.06517844,58453.0,58452.0,0.20225667]
[1725280103489,0.06617844,58453.0,58452.0,0.20225667]
[1725280105582,0.06317844,58453.0,58452.0,0.20225667]
[1725280105889,0.06517844,58453.0,58452.0,0.20225667]
[1725280106096,0.15072144,58453.0,58452.0,0.20225667]
[1725280106284,0.15072144,58453.0,58452.0,0.00225667]
[1725280106684,0.089943,58453.0,58452.0,0.00225667]
[1725280107587,0.087943,58453.0,58452.0,0.00125667]
[1725280107795,0.089943,58453.0,58452.0,0.00225667]
[1725280109689,0.450743,58453.0,58452.0,0.00225667]
[1725280110691,0.448743,58453.0,58452.0,0.00125667]
[1725280110898,0.450743,58453.0,58452.0,0.00225667]
[1725280112701,0.089943,58453.0,58452.0,0.00225667]
[1725280112900,0.51888077,58453.0,58452.0,0.00225667]
[1725280114402,0.15808077,58453.0,58452.0,0.00225667]
[1725280114598,0.51888077,58453.0,58452.0,0.00225667]
[1725280114797,0.50952454,58453.0,58452.0,0.00125667]
[1725280115299,0.51152454,58453.0,58452.0,0.00225667]
[1725280116998,0.51152417,58453.0,58452.0,0.00225667]
[1725280118490,0.50952417,58453.0,58452.0,0.00125667]
[1725280118700,0.51152417,58453.0,58452.0,0.00225667]
[1725280119791,0.14872417,58453.0,58452.0,0.00125667]
[1725280119992,0.15072417,58453.0,58452.0,0.12225667]
[1725280120793,0.14872417,58453.0,58452.0,0.12125667]
[1725280120992,0.15072417,58453.0,58452.0,0.12225667]
[1725280121890,0.15815718,58453.0,58452.0,0.12225667]
[1725280122095,0.15615718,58453.0,58452.0,0.12125667]
[1725280122393,0.087943,58453.0,58452.0,0.12125667]
[1725280122596,0.087943,58453.0,58452.0,0.12225667]
[1725280122597,0.089943,58453.0,58452.0,0.12225667]
[1725280123902,0.087943,58453.0,58452.0,0.12125667]
[1725280124102,0.089943,58453.0,58452.0,0.12225667]
[1725280124299,0.17521073,58453.0,58452.0,0.12225667]
[1725280124496,0.089943,58453.0,58452.0,0.12225667]
[1725280125300,0.17521073,58453.0,58452.0,0.12225667]
[1725280126108,0.089943,58453.0,58452.0,0.12225667]
[1725280126300,0.17521073,58453.0,58452.0,0.12225667]
[1725280126803,0.53601073,58453.0,58452.0,0.12225667]
[1725280132008,0.53601073,58453.0,58452.0,0.00225667]
[1725280133509,0.53401073,58453.0,58452.0,0.00125667]
[1725280133710,0.17521073,58453.0,58452.0,0.00225667]
[1725280134114,0.53601073,58453.0,58452.0,0.00225667]
[1725280135504,0.17521073,58453.0,58452.0,0.00225667]
[1725280135710,0.53601073,58453.0,58452.0,0.00225667]
[1725280136215,0.53601073,58453.0,58452.0,0.00125667]
[1725280136411,0.53601073,58453.0,58452.0,0.00225667]
[1725280136813,0.51152394,58453.0,58452.0,0.00225667]
[1725280138612,0.63079022,58453.0,58452.0,0.00225667]
[1725280143929,0.53620986,58453.0,58452.0,0.00225667]
[1725280144132,0.450743,58453.0,58452.0,0.00225667]
[1725280145834,0.536286,58453.0,58452.0,0.00225667]
[1725280146042,0.536286,58453.0,58446.0,0.06847119]
[1725280146043,0.085547,58450.0,58446.0,0.06847119]
[1725280146218,0.53217666,58447.0,58444.0,0.06847119]
[1725280146538,0.0004,58445.0,58442.0,0.06847119]
[1725280146728,0.085957,58443.0,58442.0,0.06847119]
[1725280147137,0.171514,58443.0,58441.0,0.07284016]
[1725280147330,0.084559,58442.0,58441.0,0.07284016]
[1725280147534,0.084959,58442.0,58441.0,0.07284016]
[1725280147735,0.531318,58442.0,58441.0,0.00436897]
[1725280148040,0.531318,58442.0,58440.0,0.06847119]
[1725280148041,0.08556,58441.0,58440.0,0.06847119]
[1725280148233,0.08556,58441.0,58439.0,0.06847119]
[1725280148234,0.085562,58440.0,58439.0,0.06847119]
[1725280148429,0.085962,58440.0,58439.0,0.06847119]
[1725280148639,0.085562,58440.0,58439.0,0.06847119]
[1725280148834,0.085562,58440.0,58438.0,0.12]
[1725280148835,0.085563,58439.0,58438.0,0.18847119]
[1725280149047,0.085963,58439.0,58438.0,0.18847119]
[1725280149345,0.083963,58439.0,58438.0,0.12]
[1725280150042,0.083963,58439.0,58438.0,0.124]
[1725280151446,0.083963,58439.0,58438.0,0.17526416]
[1725280151646,0.083963,58439.0,58438.0,0.125]
[1725280152149,0.083963,58439.0,58438.0,0.17625528]
[1725280153036,0.083963,58439.0,58438.0,0.125]
[1725280153037,0.13513327,58439.0,58438.0,0.125]
[1725280153236,0.083963,58439.0,58438.0,0.125]
[1725280156943,0.0004,58439.0,58438.0,0.125]
[1725280158946,0.06868989,58439.0,58438.0,0.125]
[1725280163052,0.06868989,58439.0,58438.0,0.210565]
[1725280163447,0.0004,58439.0,58438.0,0.210565]
[1725280164455,0.0004,58439.0,58438.0,0.26180539]
[1725280166157,0.0004,58439.0,58438.0,0.210565]
[1725280166556,0.0004,58439.0,58438.0,0.26181748]
[1725280166743,0.04922527,58451.0,58447.0,0.085551]
[1725280166959,0.05117762,58458.0,58450.0,0.3612]
[1725280167260,0.17117762,58459.0,58457.0,0.0004]
[1725280167476,0.085538,58456.0,58455.0,0.0683054]
[1725280167652,0.446338,58456.0,58454.0,0.0683054]
[1725280167850,0.05116397,58456.0,58454.0,0.0683054]
[1725280168046,0.05116397,58457.0,58455.0,0.0683054]
[1725280168257,0.12,58457.0,58456.0,0.0004]
[1725280168560,0.12,58457.0,58456.0,0.05162672]
[1725280168765,0.42903683,58459.0,58456.0,0.05162807]
[1725280168957,0.205537,58457.0,58456.0,0.05162807]
[1725280169156,0.205537,58457.0,58456.0,0.05122807]
[1725280169566,0.208537,58457.0,58456.0,0.05222807]
[1725280169858,0.208537,58457.0,58456.0,0.05322807]
[1725280170252,0.208537,58457.0,58456.0,0.002]
[1725280170556,0.208537,58457.0,58456.0,0.05322807]
[1725280171173,0.208537,58457.0,58456.0,0.002]
[1725280171859,0.205537,58457.0,58456.0,0.05222807]
[1725280172060,0.208537,58457.0,58456.0,0.05322807]
[1725280172461,0.809537,58457.0,58456.0,0.002]
[1725280172761,0.809537,58457.0,58450.0,0.00065667]
[1725280172762,0.171092,58451.0,58450.0,0.00065667]
[1725280172952,0.085557,58443.0,58442.0,0.05123478]
[1725280173154,0.085562,58440.0,58439.0,0.05123478]
[1725280173464,0.205962,58440.0,58438.0,0.05123478]
[1725280173663,0.25709265,58440.0,58439.0,0.05123478]
[1725280173862,0.085963,58439.0,58435.0,0.06830084]
[1725280174170,0.085963,58439.0,58434.0,0.00025667]
[1725280174171,0.0004,58436.0,58434.0,0.00025667]
[1725280174364,0.0271437,58435.0,58434.0,0.20582667]
[1725280174562,0.0004,58435.0,58434.0,0.20582667]
[1725280175262,0.0004,58439.0,58435.0,0.0036]
[1725280175460,0.03305335,58438.0,58435.0,0.0036]
[1725280175655,0.0004,58439.0,58435.0,0.0036]
[1725280175963,0.03305319,58438.0,58435.0,0.0036]
[1725280176158,0.0004,58439.0,58435.0,0.0036]
[1725280176460,0.03305301,58438.0,58435.0,0.007]
[1725280176765,0.03305318,58437.0,58435.0,0.007]
[1725280177061,0.3608,58439.0,58435.0,0.007]
[1725280177361,0.03305318,58438.0,58435.0,0.007]
[1725280177557,0.3608,58439.0,58435.0,0.007]
[1725280177867,0.03305318,58438.0,58435.0,0.007]
[1725280178165,0.3608,58439.0,58435.0,0.007]
[1725280178166,0.03305318,58437.0,58435.0,0.011]
[1725280178365,0.3608,58439.0,58435.0,0.011]
[1725280178559,0.03305323,58438.0,58435.0,0.011]
[1725280178752,0.3608,58439.0,58435.0,0.011]
[1725280178950,0.03305309,58438.0,58435.0,0.004]
[1725280179160,0.03305309,58437.0,58435.0,0.007]
[1725280179367,0.03305309,58437.0,58435.0,0.011]
[1725280179676,0.001,58438.0,58435.0,0.011]
[1725280179857,0.001,58438.0,58435.0,0.004]
[1725280180056,0.3618,58439.0,58435.0,0.011]
[1725280180266,0.03305327,58438.0,58435.0,0.011]
[1725280180567,0.3618,58439.0,58435.0,0.011]
[1725280180766,0.0330532,58438.0,58435.0,0.011]
[1725280181065,0.0469,58438.0,58435.0,0.011]
[1725280181553,0.03305345,58437.0,58436.0,0.085567]
[1725280181859,0.001,58439.0,58438.0,0.085565]
[1725280182178,0.0497,58442.0,58438.0,0.085565]
[1725280182179,0.0497,58442.0,58439.0,0.085562]
[1725280182369,0.0497,58442.0,58440.0,0.085561]
[1725280182563,0.4808,58441.0,58440.0,0.085561]
[1725280183164,0.53187158,58441.0,58440.0,0.085561]
[1725280184067,0.53187158,58441.0,58440.0,0.086561]
[1725280185265,0.53387158,58441.0,58440.0,0.086561]
[1725280185670,0.002,58441.0,58440.0,0.086561]
[1725280185862,0.05307042,58441.0,58440.0,0.086561]
[1725280186059,0.41387042,58441.0,58440.0,0.086561]
[1725280186260,0.3628,58441.0,58440.0,0.086561]
[1725280186468,0.002,58441.0,58440.0,0.086561]
[1725280186759,0.4828,58441.0,58440.0,0.001]
[1725280186962,0.56836,58441.0,58440.0,0.001]
[1725280189160,0.60141266,58441.0,58440.0,0.001]
[1725280189355,0.62915583,58441.0,58440.0,0.001]
[1725280192373,0.62915586,58441.0,58440.0,0.001]
[1725280194974,0.62915557,58441.0,58440.0,0.001]
[1725280197078,0.56836,58441.0,58440.0,0.001]
[1725280197263,0.44836,58441.0,58440.0,0.001]
[1725280201070,0.44836,58441.0,58440.0,0.05220375]
[1725280201281,0.44836,58441.0,58440.0,0.001]
[1725280202274,0.44836,58441.0,58440.0,0.06930084]
[1725280203173,0.3628,58441.0,58440.0,0.206562]
[1725280203391,0.4310774,58441.0,58440.0,0.206562]
[1725280204073,0.3628,58441.0,58440.0,0.206562]
[1725280205174,0.44814935,58441.0,58440.0,0.2578918]
[1725280205381,0.44814935,58441.0,58440.0,0.206562]
[1725280207487,0.002,58441.0,58440.0,0.206562]
[1725280208488,0.002,58441.0,58440.0,0.208562]
[1725280208987,0.08534935,58443.0,58442.0,0.085559]
[1725280209286,0.08534935,58443.0,58442.0,0.1372761]
[1725280211284,0.08534935,58443.0,58442.0,0.085959]
[1725280211285,0.08834935,58443.0,58442.0,0.085959]
[1725280212084,0.07794557,58443.0,58442.0,0.085959]
[1725280212292,0.12243546,58443.0,58442.0,0.085959]
[1725280212493,0.0779454,58443.0,58442.0,0.205959]
[1725280213085,0.0779454,58443.0,58442.0,0.085959]
[1725280214284,0.0779454,58443.0,58442.0,0.0004]
[1725280214485,0.2835024,58443.0,58442.0,0.0004]
[1725280214689,0.2835024,58443.0,58430.0,0.3608]
[1725280214690,0.085569,58435.0,58424.0,0.4061]
[1725280214878,0.0004,58425.0,58424.0,0.41046939]
[1725280215180,0.03345562,58425.0,58424.0,0.41046939]
[1725280215386,0.03345562,58425.0,58424.0,0.53046939]
[1725280215779,0.03345562,58425.0,58424.0,0.54446939]
[1725280218588,0.0004,58425.0,58424.0,0.54446939]
[1725280218788,0.0004,58425.0,58424.0,0.55846939]
[1725280219092,0.085581,58427.0,58424.0,0.55846939]
[1725280219093,0.085581,58427.0,58424.0,0.32808147]
[1725280219292,0.085581,58427.0,58426.0,0.08584713]
[1725280219686,0.085581,58427.0,58426.0,0.21625929]
[1725280220191,0.085581,58427.0,58426.0,0.08584713]
[1725280220403,0.085581,58427.0,58426.0,0.0004]
[1725280220699,0.085581,58427.0,58426.0,0.09884713]
[1725280221398,0.085581,58427.0,58426.0,0.0134]
[1725280222086,0.085581,58427.0,58426.0,0.0274]
[1725280227492,0.085581,58427.0,58424.0,0.00436939]
[1725280227493,0.3608,58427.0,58424.0,0.00436939]
[1725280227792,0.3608,58427.0,58414.0,0.0856]
[1725280227793,0.1204,58425.0,58414.0,0.0856]
[1725280227990,0.4812,58420.0,58414.0,0.0856]
[1725280228294,0.4812,58420.0,58419.0,0.00447649]
[1725280228295,0.566791,58420.0,58419.0,0.00447649]
[1725280228492,0.566791,58420.0,58419.0,0.00025667]
[1725280228698,0.552791,58420.0,58419.0,0.00025667]
[1725280229113,0.542791,58420.0,58419.0,0.00025667]
[1725280229287,0.628382,58420.0,58419.0,0.00025667]
[1725280229489,1.33047974,58420.0,58419.0,0.01425667]
[1725280229691,1.228382,58420.0,58419.0,0.01425667]
[1725280229892,1.2624485,58420.0,58419.0,0.02425667]
[1725280231211,0.085606,58410.0,58409.0,0.00430288]
[1725280231398,0.2905947,58410.0,58409.0,0.085607]
[1725280231600,0.2909947,58410.0,58409.0,0.085607]
[1725280231793,0.255906,58410.0,58409.0,0.085607]
[1725280232499,0.255906,58410.0,58404.0,0.00025667]
[1725280232500,0.1703,58410.0,58404.0,0.00025667]
[1725280232692,0.20561,58407.0,58405.0,0.085613]
[1725280232894,0.085611,58406.0,58405.0,0.085613]
[1725280234692,0.091611,58406.0,58405.0,0.085613]
[1725280235005,0.171226,58405.0,58404.0,0.00025667]
[1725280235191,0.085619,58401.0,58400.0,0.02568]
[1725280235505,0.652038,58401.0,58400.0,0.02568]
[1725280235705,1.252438,58401.0,58400.0,0.02568]
[1725280235890,1.332038,58401.0,58400.0,0.02568]
[1725280236094,1.332038,58401.0,58397.0,0.02568]
[1725280236095,0.085623,58398.0,58397.0,0.02568]
[1725280236293,0.086023,58398.0,58397.0,0.02568]
[1725280237008,0.171646,58398.0,58397.0,0.02568]
[1725280238101,0.532446,58398.0,58397.0,0.02568]
[1725280238408,1.132446,58398.0,58397.0,0.02568]
[1725280238604,0.28563,58393.0,58392.0,0.00025667]
[1725280238903,0.64683,58393.0,58392.0,0.00025667]
[1725280239096,1.24683,58393.0,58392.0,0.00025667]
[1725280239293,0.64683,58393.0,58386.0,0.00431221]
[1725280239604,0.646441,58387.0,58383.0,0.05690167]
[1725280240497,0.646441,58387.0,58383.0,0.06116719]
[1725280241003,0.646441,58387.0,58384.0,0.085643]
[1725280241310,0.5608,58387.0,58384.0,0.085643]
[1725280241600,0.5718,58387.0,58384.0,0.085643]
[1725280241791,0.5718,58387.0,58379.0,0.0002569]
[1725280242110,0.5718,58387.0,58379.0,0.00446331]
[1725280242417,0.3718,58387.0,58382.0,0.2]
[1725280242592,0.011,58387.0,58386.0,0.085641]
[1725280243002,0.0114,58387.0,58386.0,0.085641]
[1725280243191,0.0004,58387.0,58386.0,0.085641]
[1725280243391,0.0124,58387.0,58386.0,0.085641]
[1725280243902,0.0004,58387.0,58386.0,0.085641]
[1725280244103,0.0144,58387.0,58386.0,0.085641]
[1725280244599,0.0054,58387.0,58386.0,0.085641]
[1725280246905,0.0004,58387.0,58386.0,0.085641]
[1725280247102,0.0024,58387.0,58384.0,0.0493]
[1725280247510,0.0004,58385.0,58384.0,0.134944]
[1725280248918,0.0074,58385.0,58384.0,0.134944]
[1725280250718,0.0002569,58391.0,58390.0,0.085635]
[1725280251009,0.32716001,58404.0,58394.0,0.085629]
[1725280251210,0.3608,58405.0,58397.0,0.2]
[1725280251400,0.3608,58405.0,58395.0,0.1423]
[1725280251401,0.085615,58404.0,58395.0,0.1423]
[1725280252203,0.3610569,58405.0,58395.0,0.227926]
[1725280252516,0.085619,58401.0,58396.0,0.085626]
[1725280253115,0.2,58402.0,58395.0,0.1423]
[1725280253418,0.2,58402.0,58395.0,0.0966]
[1725280254615,0.085624,58398.0,58395.0,0.0976]
[1725280255204,0.085625,58397.0,58395.0,0.14883189]
[1725280256002,0.085625,58397.0,58395.0,0.14783189]
[1725280256310,0.085625,58397.0,58395.0,0.001]
[1725280256311,0.617678,58396.0,58395.0,0.001]
[1725280256508,0.665378,58396.0,58395.0,0.001]
[1725280256702,1.265378,58396.0,58395.0,0.001]
[1725280257519,0.665378,58396.0,58395.0,0.001]
[1725280257817,0.171256,58395.0,58394.0,0.0002569]
[1725280258019,0.218756,58395.0,58394.0,0.0002569]
[1725280258313,0.818756,58395.0,58394.0,0.0002569]
[1725280258507,0.904384,58395.0,58394.0,0.0002569]
[1725280260610,0.304384,58395.0,58394.0,0.0002569]
[1725280260811,0.318384,58395.0,58394.0,0.0002569]
[1725280261414,0.304384,58395.0,58394.0,0.0002569]
[1725280261620,0.318384,58395.0,58394.0,0.0002569]
[1725280262915,0.232756,58395.0,58394.0,0.0002569]
[1725280268525,0.218756,58395.0,58394.0,0.0002569]